Cogmind - Beta 16.1 *** ADVENTURER MODE // 2026.02.12 @ 18:21:07 Player: Jefffff Result: Destroyed by S-43 Plague with Heavy Machine Gun Performance ------------- Evolutions (9) 4500 Regions Visited (12) 2400 Robots Destroyed (108) 540 Value Destroyed (4962) 4962 Prototype IDs (9) 180 Alien Tech Used (1) 200 Bonus (58) 58 TOTAL SCORE: 12840 Bonus ------- Follower Combat Kills 84 Friendly Fire -26 Cogmind --------- Core Integrity 0/1600 Matter 300/300 Energy 99/100 System Corruption 1% Temperature Cool (0) Movement Core (50) Location -1/Access Parts ------- > --- POWER (5) -------- (None) > --- PROPULSION (8) --- (None) > --- UTILITY (9) ------ (None) > --- WEAPON (3) ------- (None) > --- INVENTORY (5) ---- Fusion Bomb Launcher Advanced Remote Datajack Peak State ------------ > --- POWER ------------ Light Antimatter Reactor Light Particle Reactor Micro Antimatter Reactor Graviton Reactor Light Quantum Reactor > --- PROPULSION ------- Medium Treads Improved Antigrav System Improved Antigrav System Cooled Antigrav System Cooled Antigrav System Cooled Antigrav System Cooled Antigrav System Cooled Q-thruster > --- UTILITY ---------- Advanced Heat Sink Advanced Weight Redist. System Advanced Weight Redist. System Terrain Scan Processor Advanced Target Analyzer Heavy Armor Plating Advanced Component Analysis Suite > --- WEAPON ----------- Enhanced Nova Cannon Enhanced Nova Cannon Enhanced Hardcell Cannon > --- INVENTORY -------- Quantum Reactor Improved Targeting Computer Railgun Fusion Bomb Launcher Advanced Remote Datajack [Rating: 169] Favorites ----------- Power Light Antimatter Reactor Engine Deuterium Engine Power Core Neutrino Core Reactor Light Antimatter Reactor Propulsion Thunder Leg Treads Spiked Medium Treads Leg Thunder Leg Wheel Centrium Wheel Hover Unit Cooled Antigrav System Flight Unit Makeshift Flight Unit Utility Large Storage Unit Device Advanced Heat Sink Storage Large Storage Unit Processor Improved Melee Analysis Suite Protection Core Shielding Weapon Light Assault Rifle Energy Gun Phase Gun Energy Cannon Advanced Plasma Cannon Ballistic Gun Light Assault Rifle Ballistic Cannon Magnetic Acceleration Cannon Special Weapon Plasma Flamer Impact Weapon Power Maul Slashing Weapon Phasing Sabre Build | -11 -10 -10 -8 -8 -6 -5 -4 -4 -4 -3 -2 -1 ------- Run | Yrd Mat Sub Rec Scr Fac Fac Fac Upp Upp Res Res Acc Slots Evolved 18 | . . . . . 8 2 2 . . 2 2 2 Power 4 | . . . . . 1 . 1 . . . 2 . Propulsion 6 | . . . . . 2 1 1 . . 1 . 1 Utility 7 | . . . . . 4 1 . . . 1 . 1 Weapon 1 | . . . . . 1 . . . . . . . Parts Attached 182 | 5 5 9 3 1 10 18 7 41 20 25 11 27 Power 31 | 1 1 . 1 . 2 2 2 7 4 3 1 7 Engine 9 | 1 1 . 1 . 1 1 . 1 2 . . 1 Core 8 | . . . . . 1 1 2 3 1 . . . Reactor 14 | . . . . . . . . 3 1 3 1 6 Propulsion 55 | 2 . 4 1 1 3 7 1 10 5 9 5 7 Treads 9 | . . . . . 1 . . 5 2 . . 1 Leg 23 | 2 . 4 1 1 2 6 1 3 . 2 . 1 Wheel 3 | . . . . . . 1 . . 1 . . 1 Hover 14 | . . . . . . . . . 1 5 5 3 Flight 6 | . . . . . . . . 2 1 2 . 1 Utility 56 | 1 2 1 . . 4 5 2 15 6 10 1 9 Device 39 | . 1 . . . 2 5 1 10 5 9 1 5 Storage 3 | 1 1 . . . . . . . . 1 . . Processor 8 | . . . . . 1 . . 4 . . . 3 Hackware . | . . . . . . . . . . . . . Protection 6 | . . 1 . . 1 . 1 1 1 . . 1 Artifact . | . . . . . . . . . . . . . Weapon 40 | 1 2 4 1 . 1 4 2 9 5 3 4 4 Energy Gun 4 | . 1 1 . . . . . 1 . . 1 . Energy Cannon 9 | . . . . . . . . 2 2 1 1 3 Ballistic Gun 8 | 1 1 2 1 . 1 . . 1 . . . 1 Ballistic Cannon 10 | . . 1 . . . 2 2 2 . 1 2 . Launcher . | . . . . . . . . . . . . . Special Weapon 4 | . . . . . . . . . 3 1 . . Impact Weapon 1 | . . . . . . 1 . . . . . . Slashing Weapon 4 | . . . . . . 1 . 3 . . . . Piercing Weapon . | . . . . . . . . . . . . . Special Melee Weapon . | . . . . . . . . . . . . . Unidentified Prototypes 5 | . . . . . . . . 2 . 1 1 1 Parts Lost 108 | . . 5 . . . 10 2 33 19 28 4 7 Power 18 | . . . . . . 2 1 5 4 4 . 2 Propulsion 35 | . . 2 . . . 2 . 12 4 11 2 2 Utility 35 | . . 1 . . . 4 . 11 5 11 1 2 Weapon 20 | . . 2 . . . 2 1 5 6 2 1 1 Highest Loss Streak 18 | . . 2 . . . 10 2 13 14 18 4 4 To Critical Strikes 2 | . . 1 . . . . . 1 . . . . Average Backups 9 | . 5 11 11 14 10 10 12 10 3 6 4 4 Power . | . . 1 . . . . 1 1 . . 1 . Propulsion 1 | . 2 2 2 1 . 1 2 . . 1 . . Utility 2 | . 1 1 2 5 3 1 3 4 1 2 . . Weapon 3 | . . 6 5 5 4 5 3 2 1 . 1 1 Tool/Special . | . . . . . . . . . . . . . Unused Backups 34 | . . . 8 8 . 9 2 4 . . 1 2 Power 3 | . . . 2 . . . . . . . 1 . Propulsion 1 | . . . . 1 . . . . . . . . Utility 6 | . . . . 1 . 3 . 2 . . . . Weapon 21 | . . . 6 6 . 5 2 1 . . . 1 Tool/Special 3 | . . . . . . 1 . 1 . . . 1 Average Slot Usage (%) 86 | . 93 99 100 100 88 94 99 83 66 81 23 45 Engine 6 | . 13 14 14 14 6 4 4 1 . 3 . . Core 3 | . . . . . 6 4 10 8 3 . . . Reactor 2 | . . . . . . . . 4 7 7 1 9 Treads 2 | . . . . . 5 3 . 7 2 5 . 1 Leg 16 | . 28 27 28 28 15 23 30 9 . 3 . . Hover 1 | . . . . . . . . . . 10 9 12 Device 13 | . 10 1 . . 6 20 21 22 15 28 4 6 Storage 7 | . 14 14 14 14 6 5 5 3 . 2 . . Processor 3 | . . . . . 5 3 . 7 12 1 . 3 Protection 5 | . . 12 14 14 12 5 9 1 2 . . 1 Energy Cannon 1 | . . . . . . . . 1 4 8 1 4 Ballistic Gun 10 | . 19 16 28 28 19 8 . 1 . . . . Ballistic Cannon 4 | . . 11 . . . 5 14 4 . 2 3 2 Slashing Weapon 1 | . . . . . . . . 4 3 . . . Peak Build Rating 169 | 5 8 11 12 16 46 80 106 104 91 134 91 169 Average Rating 57 | 3 6 9 11 15 37 62 100 89 72 107 55 82 On Entrance 44 | . 5 7 10 12 16 46 80 103 91 88 26 91 Avg Prop Armor Cover (%) 10 | . . . . . 7 5 . 8 24 17 . 4 Naked Turns 221 | . . . . . . . . . . . . 221 Heaviest Build 120 | 11 30 31 35 34 56 74 94 104 69 105 54 120 Greatest Support 138 | 20 20 20 20 25 45 115 138 138 98 46 65 85 Greatest Overweight (x) 31 | . 1 1 1 1 2 1 . 31 4 6 2 1 Average Overweight (x) 1 | . . 1 1 1 1 . . 1 1 2 . . Largest Inventory Capacity 15 | 8 15 15 15 15 15 15 15 15 5 10 5 5 Average Capacity 12 | 6 14 15 15 15 15 15 15 11 5 7 5 5 Most Carried 15 | 1 10 14 15 15 14 15 15 15 5 10 5 5 Average Carried 9 | . 5 11 11 14 10 10 12 10 3 6 4 4 Final Capacity 15 | 8 15 15 15 15 15 15 15 5 5 5 5 5 Final Carried 15 | 1 7 13 11 15 11 11 15 5 3 5 5 2 Class Distribution -------------------- 48% | Mutant 11% | Scavenger-Mutant 10% | Tank 9% | Derelict-Tank 7% | Scavenger-Gladiator 6% | Scavenger-Tank Dominant Class ---------------- Mutant | -10/Materials Mutant | -10/Subcaves Mutant | -8/Recycling Mutant | -8/Scraptown Derelict-Tank | -6/Factory Scavenger-Tank | -5/Factory Tank | -4/Factory Scavenger-Mutant | -4/Upper Caves Scavenger-Mutant | -4/Upper Caves Derelict-Tank | -3/Research Mutant | -2/Research Mutant | -1/Access Resources | -11 -10 -10 -8 -8 -6 -5 -4 -4 -4 -3 -2 -1 ----------- Run | Yrd Mat Sub Rec Scr Fac Fac Fac Upp Upp Res Res Acc Matter Collected 4584 | 178 137 438 . 153 203 734 258 1428 245 219 . 591 Remotely 40 | . . . . . . . . 40 . . . . Salvage Created 4479 | . 354 332 . . 341 820 233 1091 171 733 . 404 Parts 177 | . 17 28 . . 13 33 7 41 1 21 . 16 Haulers Intercepted 1 | . 1 . . . . . . . . . . . Recyclers Shooed 11 | . 1 . . . 2 6 1 . . 1 . . Parts Field Recycled . | . . . . . . . . . . . . . Retrieved Matter . | . . . . . . . . . . . . . Parts Self-Destructed 45 | . . 18 . . . . . 23 4 . . . Prevented 2 | . . . . . . . . . 2 . . . Parts Restored . | . . . . . . . . . . . . . Kills | -11 -10 -10 -8 -8 -6 -5 -4 -4 -4 -3 -2 -1 ------- Run | Yrd Mat Sub Rec Scr Fac Fac Fac Upp Upp Res Res Acc Combat Hostiles Destroyed 85 | . 6 16 . . 5 13 4 22 3 12 . 4 Melee 6 | . . . . . . 1 . 4 1 . . . Guns 24 | . 6 6 . . 5 1 . 5 1 . . . Cannons 51 | . . 10 . . . 10 4 13 . 10 . 4 AOE 1 | . . . . . . 1 . . . . . . Classes Destroyed 16 | . 4 4 . . 1 4 1 2 . . . . Worker 5 | . 1 . . . . 4 . . . . . . Builder 3 | . . . . . . 2 . . . . . 1 Hauler 1 | . 1 . . . . . . . . . . . Recycler 5 | . 1 . . . . 3 1 . . . . . Turret 2 | . . 2 . . . . . . . . . . Watcher 7 | . . . . . . 3 2 . . 1 . 1 Swarmer 18 | . . 7 . . . 4 . 3 1 3 . . Grunt 27 | . 6 4 . . 4 2 . 5 . 6 . . Brawler 1 | . . . . . . 1 . . . . . . Duelist 3 | . . . . . 1 1 . . 1 . . . Sentry 10 | . . 1 . . . 1 2 2 1 1 . 2 Hunter 2 | . . . . . . . . 2 . . . . Programmer 13 | . . . . . . 4 1 4 . 2 . 2 Heavy 1 | . . . . . . . 1 . . . . . Subdweller 4 | . . 4 . . . . . . . . . . Thug 1 | . . . . . . . . 1 . . . . Butcher 4 | . . . . . . . . 4 . . . . Mutant 1 | . . . . . . . . 1 . . . . Best Kill Streak 5 | . 4 5 . . 3 4 2 4 1 5 . 2 Combat Bots Only 5 | . 3 4 . . 3 3 1 4 1 5 . 2 Max Kills in Single Turn 2 | . 1 1 . . 1 2 1 1 1 1 . 1 Gunslinging . | . . . . . . . . . . . . . Exploded 1 | . . . . . . 1 . . . . . . Melee 1 | . . . . . . 1 . 1 1 . . . Uniques/NPCs Destroyed . | . . . . . . . . . . . . . Combat | -11 -10 -10 -8 -8 -6 -5 -4 -4 -4 -3 -2 -1 -------- Run | Yrd Mat Sub Rec Scr Fac Fac Fac Upp Upp Res Res Acc Hostile Shots Fired 1564 | . 35 127 . . 17 130 40 379 146 378 78 234 Missed 535 | . 12 45 . . 6 48 20 113 48 127 32 84 Hits 1029 | . 23 82 . . 11 82 20 266 98 251 46 150 Melee 89 | . . . . . . 15 . 48 8 . . 18 Projectile 940 | . 23 82 . . 11 67 20 218 90 251 46 132 AOE 11 | . . 6 . . . 3 . . . . . 2 Critical Strikes 67 | . 2 1 . . . 4 3 24 9 8 1 15 Actively Blocked 3 | . . . . . . . . 2 . . 1 . Part Disruptions 3 | . . . . . . 1 . 1 . . . 1 Damage Taken 17745 | . 253 876 . . 194 1622 565 4561 1659 3986 902 3127 Core 4522 | . 65 130 . . 18 73 29 549 455 1255 340 1608 Absorbed by Shields 665 | . . . . . . . . 418 51 196 . . Redirected to Shielding 211 | . . 6 . . 47 16 7 135 . . . . Ignored by Resistances 5113 | . 75 252 . . 53 441 150 1390 472 1185 247 848 Core Remaining (%) 57 | 100 . . . 22 97 92 . . 10 3 76 . Volleys Fired 356 | . 35 75 . . 18 50 22 71 18 32 4 31 Largest 3 | . 2 2 . . 3 3 3 3 2 3 2 2 Hottest 258 | . 85 70 . . 76 96 135 187 200 258 116 240 Shots Fired 724 | . 49 148 . . 54 104 64 145 28 81 5 46 Gun 260 | . 49 90 . . 54 16 . 40 7 . 1 3 Cannon 456 | . . 58 . . . 88 64 105 13 81 4 43 Launcher . | . . . . . . . . . . . . . Special 8 | . . . . . . . . . 8 . . . Kinetic 553 | . 35 145 . . 54 104 64 110 7 27 2 5 Thermal 153 | . 14 . . . . . . 33 8 54 3 41 Explosive . | . . . . . . . . . . . . . Electromagnetic 18 | . . 3 . . . . . 2 13 . . . Robot Hit Streak 37 | . 9 37 . . 12 30 23 27 20 18 3 14 Robot Miss Streak 4 | . 2 3 . . 3 2 3 4 1 4 1 3 Penetration Max 1 | . . . . . 1 . 1 1 . . . . Secondary Targets 1 | . 1 . . . . . . . . . . . Max Gunslinging Chain 1 | . 1 . . . . . . . . . . . Shots Hit Robots 530 | . 36 93 . . 38 88 47 115 30 51 3 29 Core Hits 206 | . 20 33 . . 20 39 15 40 7 21 . 11 Critical Kills 6 | . . . . . 2 . . 2 . 2 . . Critical Parts Destroyed 13 | . 1 . . . 3 2 . 6 1 . . . Critical Strikes 52 | . 2 3 . . 5 12 9 14 2 5 . . Burn 3 | . 1 . . . . . . 1 1 . . . Meltdown 2 | . . . . . . . . . . 2 . . Destroy 17 | . 1 . . . 5 2 . 8 1 . . . Blast 27 | . . 3 . . . 9 9 3 . 3 . . Corrupt 1 | . . . . . . . . 1 . . . . Sever 2 | . . . . . . 1 . 1 . . . . Melee Attacks 28 | . . . . . . 7 . 17 4 . . . Impact 3 | . . . . . . 2 . 1 . . . . Slashing 25 | . . . . . . 5 . 16 4 . . . Piercing . | . . . . . . . . . . . . . Sneak Attacks . | . . . . . . . . . . . . . Combat Hostiles . | . . . . . . . . . . . . . Follow-up Attacks 1 | . . . . . . . . 1 . . . . Damage Inflicted 13982 | . 384 1551 . . 428 2862 1562 3313 577 1882 118 1305 Guns 2640 | . 384 771 . . 376 111 . 801 175 . . 22 Cannons 10032 | . . 780 . . . 2357 1554 1942 182 1856 118 1243 Explosions 264 | . . . . . 52 212 . . . . . . Melee 880 | . . . . . . 182 . 570 128 . . . Ramming 74 | . . . . . . . 8 . . 26 . 40 Kinetic 8920 | . 196 1495 . . 376 2468 1554 1988 175 566 80 22 Thermal 3782 | . 188 . . . . 212 . 719 92 1290 38 1243 Explosive . | . . . . . . . . . . . . . Electromagnetic 326 | . . 56 . . 52 . . 36 182 . . . Impact 106 | . . . . . . 67 . 39 . . . . Slashing 774 | . . . . . . 115 . 531 128 . . . Piercing . | . . . . . . . . . . . . . Highest Corruption 13 | . 2 2 2 . . 13 1 5 1 1 . 1 Average Corruption 2 | . 1 2 2 . . 9 1 2 1 1 . 1 Corruption Purged 8 | . . . . . . . . 8 . . . . Corruption Blocked . | . . . . . . . . . . . . . Effects 74 | . . 19 2 . . 15 . 34 1 . . 3 Message Errors 20 | . . 8 1 . . 5 . 5 1 . . . Matter Fused 15 | . . 3 . . . 2 . 8 . . . 2 Heat Flow Errors 12 | . . 2 . . . 1 . 9 . . . . Energy Discharges 6 | . . 1 1 . . 1 . 3 . . . . Parts Rejected 1 | . . . . . . . . 1 . . . . Parts Fused 1 | . . . . . . . . 1 . . . . Data Loss (minor) 10 | . . 2 . . . 2 . 6 . . . . Data Loss (major) 2 | . . 1 . . . . . . . . . 1 Misfires 3 | . . 1 . . . 2 . . . . . . Alerts 1 | . . . . . . 1 . . . . . . Weapon Failures 3 | . . 1 . . . 1 . 1 . . . . Overload Shots . | . . . . . . . . . . . . . Overflow Damage 285 | . . . . . . 98 45 79 . 47 . 16 Projectiles 245 | . . . . . . 64 45 73 . 47 . 16 Explosions 34 | . . . . . . 34 . . . . . . Melee 6 | . . . . . . . . 6 . . . . Knockbacks 52 | . . 4 . . . 25 5 13 . 5 . . Impact . | . . . . . . . . . . . . . Kinetic 51 | . . 4 . . . 24 5 13 . 5 . . Secondary 1 | . . . . . . 1 . . . . . . Self-Inflicted Damage 61 | . . . . . 34 . . . . 11 . 16 Shots 1 | . . . . . 1 . . . . . . . Rammed 19 | . . . . . . . . . . 6 . 13 Targets Rammed 20 | . . . . . . . 1 . . 6 . 13 Kicked 1 | . . . . . . . 1 . . . . . Crushed . | . . . . . . . . . . . . . Highest Temperature 573 | . 193 125 . . 189 174 . 223 273 573 37 498 Average Temperature 146 | . 65 57 . . 63 111 . 63 76 192 18 198 Received Heat Transfer 3553 | . 216 195 . . 99 264 45 820 647 727 207 333 Effects 37 | . . . . . . . . . 3 11 . 23 Shutdowns 20 | . . . . . . . . . . 7 . 13 Energy Bleed 3 | . . . . . . . . . . . . 3 Interference 7 | . . . . . . . . . 3 2 . 2 Matter Decay 1 | . . . . . . . . . . . . 1 Damage (minor) 2 | . . . . . . . . . . . . 2 Damage (major) 4 | . . . . . . . . . . 2 . 2 Siege Activations . | . . . . . . . . . . . . . Martial Activations . | . . . . . . . . . . . . . Shielding Activations . | . . . . . . . . . . . . . Robots Disrupted 1 | . . . . . . . . . 1 . . . Combat Hostiles 1 | . . . . . . . . . 1 . . . Robots Corrupted . | . . . . . . . . . . . . . Combat Hostiles . | . . . . . . . . . . . . . Parts Fried . | . . . . . . . . . . . . . Impact Corruptions . | . . . . . . . . . . . . . Robots Melted 3 | . . . . . . . . . 1 2 . . Combat Hostiles 3 | . . . . . . . . . 1 2 . . Parts Melted 15 | . . . . . . . . . 2 9 . 4 Heat Transferred 5347 | . 518 . . . . 150 . 999 720 1887 37 1036 Parts Sabotaged . | . . . . . . . . . . . . . Parts Stolen . | . . . . . . . . . . . . . Parts Stripped . | . . . . . . . . . . . . . Power Chain Reactions . | . . . . . . . . . . . . . Alert | -11 -10 -10 -8 -8 -6 -5 -4 -4 -4 -3 -2 -1 ------- Run | Yrd Mat Sub Rec Scr Fac Fac Fac Upp Upp Res Res Acc Maximum Alert Level 1 | . . . . . . . . . . . . 1 Low Security (%) 98 | 100 100 . 100 . 100 100 100 . . 100 100 88 Level 1 1 | . . . . . . . . . . . . 11 Level 2 . | . . . . . . . . . . . . . Level 3 . | . . . . . . . . . . . . . Level 4 . | . . . . . . . . . . . . . Level 5 . | . . . . . . . . . . . . . High Security . | . . . . . . . . . . . . . Max Security . | . . . . . . . . . . . . . Peak Influence 235 | . 77 . 92 . 90 143 104 . . 133 93 235 Initial 92 | . . . 92 . . 25 36 . . 39 36 56 Average 39 | . 14 . 44 . 31 36 51 . . 22 18 94 Influence Increases 3307 | . 187 445 . . 130 477 264 375 218 555 150 506 Destroy 0b10 Robot/C 1580 | . 120 280 . . 100 260 80 320 100 240 . 80 Destroy 0b10 Robot/NC 105 | . 15 . . . . 60 15 . . 5 . 10 Destroy Leader 286 | . 22 30 . . 20 46 44 40 10 42 . 32 Allied During Kill 3 | . . . . . . . . . 3 . . . Successful Hack 56 | . . . . . . . 22 . . 22 12 . Disable Machine 90 | . . . . . 9 27 45 . . 9 . . Destroy Structure 197 | . . . . . 1 54 58 . . 42 3 39 Partial Spotted 15 | . . . . . . . . . . 15 . . Lose Combat Pursuer 975 | . 30 135 . . . 30 . 15 105 180 135 345 Influence Decreases 3122 | . 187 220 225 . 70 450 257 469 150 548 117 429 Entered New Map 382 | . . . 133 . . 35 51 43 . 29 39 52 Time Decay 2172 | . 187 210 92 . 70 315 186 326 90 324 42 330 Lost Part 532 | . . 10 . . . 100 20 100 60 195 . 47 Purge Threat 36 | . . . . . . . . . . . 36 . Squads Dispatched 25 | . . . . . 2 2 3 . . 7 5 6 Investigation . | . . . . . . . . . . . . . Extermination 10 | . . . . . . 2 1 . . 3 1 3 Reinforcement 9 | . . . . . 2 . 2 . . 1 1 3 Assault . | . . . . . . . . . . . . . Garrison 6 | . . . . . . . . . . 3 3 . Intercept . | . . . . . . . . . . . . . Searches Triggered . | . . . . . . . . . . . . . Construction Impeded 2 | . . . . . 1 . . . . . . 1 Haulers Reinforced 1 | . . . . . . . 1 . . . . . Active Scanning Responses . | . . . . . . . . . . . . . Cargo Convoy Interrupts . | . . . . . . . . . . . . . Stealth | -11 -10 -10 -8 -8 -6 -5 -4 -4 -4 -3 -2 -1 --------- Run | Yrd Mat Sub Rec Scr Fac Fac Fac Upp Upp Res Res Acc Distress Signals 9 | . 1 . . . . . . . . 1 2 5 Communications Jammed 5 | . . . . . . . 5 . . . . . Distress Signals 1 | . . . . . . . 1 . . . . . Times Spotted 194 | . 11 22 . . 6 21 9 23 13 34 16 39 Peak Tracking Total 13 | . 3 6 . . 3 8 3 5 7 12 13 11 Tactical Retreats 23 | . 2 3 . . . 2 . 1 2 4 3 6 Traps | -11 -10 -10 -8 -8 -6 -5 -4 -4 -4 -3 -2 -1 ------- Run | Yrd Mat Sub Rec Scr Fac Fac Fac Upp Upp Res Res Acc Traps Triggered 11 | . 5 . . . . 1 2 . . . . 3 Indirectly . | . . . . . . . . . . . . . Trap Hack Attempts . | . . . . . . . . . . . . . Triggered . | . . . . . . . . . . . . . Disarmed . | . . . . . . . . . . . . . Reprogrammed . | . . . . . . . . . . . . . Reused . | . . . . . . . . . . . . . Traps Extracted . | . . . . . . . . . . . . . Installed . | . . . . . . . . . . . . . Triggered . | . . . . . . . . . . . . . Machines | -11 -10 -10 -8 -8 -6 -5 -4 -4 -4 -3 -2 -1 ---------- Run | Yrd Mat Sub Rec Scr Fac Fac Fac Upp Upp Res Res Acc Machines Disabled 15 | . . 1 . . 1 3 5 4 . 1 . . Max in Single Turn 3 | . . 1 . . 1 3 2 2 . 1 . . Machines Repaired . | . . . . . . . . . . . . . Machines Dismantled . | . . . . . . . . . . . . . Machines Sabotaged . | . . . . . . . . . . . . . Overloaded Fab Kills . | . . . . . . . . . . . . . Hacking | -11 -10 -10 -8 -8 -6 -5 -4 -4 -4 -3 -2 -1 --------- Run | Yrd Mat Sub Rec Scr Fac Fac Fac Upp Upp Res Res Acc Machines Accessed 20 | . . 1 2 1 . 5 2 3 . 4 2 . Terminals 5 | . . . . . . 1 2 . . 1 1 . Fabricators . | . . . . . . . . . . . . . Repair Stations 2 | . . . . . . 1 . . . 1 . . Recycling Units 1 | . . . . . . 1 . . . . . . Scanalyzers 4 | . . . . . . 2 . . . 2 . . Garrison Access 1 | . . . . . . . . . . . 1 . Total Hacks 76 | . . 4 24 8 . 20 4 3 . 10 3 . Successful 63 | . . 4 24 8 . 14 2 3 . 6 2 . Failed 12 | . . . . . . 5 2 . . 4 1 . Catastrophic . | . . . . . . . . . . . . . Database Lockouts 1 | . . . . . . 1 . . . . . . Manual 4 | . . . . . . . 4 . . . . . Terminals 9 | . . . . . . 1 4 . . 2 2 . Fabricators . | . . . . . . . . . . . . . Repair Stations 5 | . . . . . . 2 . . . 3 . . Recycling Units 6 | . . . . . . 6 . . . . . . Scanalyzers 16 | . . . . . . 11 . . . 5 . . Garrison Access 1 | . . . . . . . . . . . 1 . Terminal Hacks 42 | . . 4 24 8 . . . 3 . 1 2 . Record 37 | . . 4 24 8 . . . 1 . . . . Prototype ID Bank 1 | . . . . . . . . . . . 1 . Open Door 2 | . . . . . . . . 2 . . . . Open DSF 1 | . . . . . . . . . . 1 . . Unreport Threat 1 | . . . . . . . . . . . 1 . Fabricator Hacks . | . . . . . . . . . . . . . Repair Station Hacks 3 | . . . . . . 1 . . . 2 . . Scan Component 2 | . . . . . . 1 . . . 1 . . Repair 1 | . . . . . . . . . . 1 . . Recycling Unit Hacks 6 | . . . . . . 6 . . . . . . Recycle Component 2 | . . . . . . 2 . . . . . . Process 1 | . . . . . . 1 . . . . . . Report Inventory 1 | . . . . . . 1 . . . . . . Retrieve Matter 2 | . . . . . . 2 . . . . . . Scanalyzer 10 | . . . . . . 7 . . . 3 . . Insert Component 4 | . . . . . . 3 . . . 1 . . Analyze 4 | . . . . . . 2 . . . 2 . . Retrieve Study 2 | . . . . . . 2 . . . . . . Garrison Access Hacks . | . . . . . . . . . . . . . Unauthorized Hacks 2 | . . . . . . . 2 . . . . . Terminals 2 | . . . . . . . 2 . . . . . Botnet 2 | . . . . . . . 2 . . . . . Fabricators . | . . . . . . . . . . . . . Repair Stations . | . . . . . . . . . . . . . Recycling Units . | . . . . . . . . . . . . . Scanalyzers . | . . . . . . . . . . . . . Garrison Access . | . . . . . . . . . . . . . Data Cores Recovered . | . . . . . . . . . . . . . Used . | . . . . . . . . . . . . . Hacking Detections 11 | . . . . . . 4 2 . . 3 2 . Full Trace Events . | . . . . . . . . . . . . . Feedback Events . | . . . . . . . . . . . . . Feedback Blocked . | . . . . . . . . . . . . . Robot Schematics Acquired . | . . . . . . . . . . . . . Robots Built . | . . . . . . . . . . . . . Authchips . | . . . . . . . . . . . . . Time . | . . . . . . . . . . . . . Total Robot Build Rating . | . . . . . . . . . . . . . Part Schematics Acquired 3 | . . . . . . 2 . . . 1 . . Parts Built . | . . . . . . . . . . . . . Authchips . | . . . . . . . . . . . . . Time . | . . . . . . . . . . . . . Total Part Build Rating . | . . . . . . . . . . . . . Part Studies Acquired 2 | . . . . . . 2 . . . . . . Parts Repaired . | . . . . . . . . . . . . . Time 16 | . . . . . . . . . . 16 . . Parts Recycled 2 | . . . . . . 2 . . . . . . Recycled Matter 117 | . . . . . . 117 . . . . . . Retrieved Matter 117 | . . . . . . 117 . . . . . . Retrieved Components . | . . . . . . . . . . . . . Parts Scanalyzed 3 | . . . . . . 2 . . . 1 . . Part Schematics Acquired 3 | . . . . . . 2 . . . 1 . . Parts Damaged . | . . . . . . . . . . . . . Bothacking | -11 -10 -10 -8 -8 -6 -5 -4 -4 -4 -3 -2 -1 ------------ Run | Yrd Mat Sub Rec Scr Fac Fac Fac Upp Upp Res Res Acc Used RIF Installer . | . . . . . . . . . . . . . Robots Hacked . | . . . . . . . . . . . . . Non-combat . | . . . . . . . . . . . . . Combat . | . . . . . . . . . . . . . Robot Hacks Applied . | . . . . . . . . . . . . . Relay Couplers Released . | . . . . . . . . . . . . . Fabnet Peak Effective % . | . . . . . . . . . . . . . Robots Rewired 1 | . . . . . . . . . 1 . . . Allies Hacked . | . . . . . . . . . . . . . Hacks Repelled . | . . . . . . . . . . . . . Allies | -11 -10 -10 -8 -8 -6 -5 -4 -4 -4 -3 -2 -1 -------- Run | Yrd Mat Sub Rec Scr Fac Fac Fac Upp Upp Res Res Acc Total Allies 2 | . . . . . . . . . 2 . . . Largest Group 1 | . . . . . . . . . 1 . . . Highest-Rated Group 135 | . . . . . . . . . 135 . . . Highest-Rated Ally 135 | . . . . . . . . . 135 . . . Total Orders . | . . . . . . . . . . . . . Ally Attacks 2 | . . . . . . . . . 2 . . . Total Damage 95 | . . . . . . . . . 95 . . . Kills 2 | . . . . . . . . . 2 . . . Allies Corrupted . | . . . . . . . . . . . . . Allies Melted . | . . . . . . . . . . . . . Intel | -11 -10 -10 -8 -8 -6 -5 -4 -4 -4 -3 -2 -1 ------- Run | Yrd Mat Sub Rec Scr Fac Fac Fac Upp Upp Res Res Acc Active Infowar (turns) 5663 | . 532 185 . . 306 692 439 2401 387 721 . . Optics 998 | . . . . . 306 692 . . . . . . Sensors 768 | . 532 185 . . . 51 . . . . . . Traps 988 | . . . . . 305 683 . . . . . . Jamming 3948 | . . . . . . . 439 2401 387 721 . . Robot Analysis Total . | . . . . . . . . . . . . . Derelict Logs Recovered 3 | . . 1 . . . . . 1 1 . . . Drone Launches . | . . . . . . . . . . . . . Drone Recoveries . | . . . . . . . . . . . . . Exploration | -11 -10 -10 -8 -8 -6 -5 -4 -4 -4 -3 -2 -1 ------------- Run | Yrd Mat Sub Rec Scr Fac Fac Fac Upp Upp Res Res Acc Turns Passed 11350 | 59 692 1369 210 1901 309 1080 526 2654 552 1109 175 714 Spaces Moved 5864 | 43 319 590 102 976 98 534 355 970 214 597 315 751 Core 508 | 1 . . . . . . . 1 94 30 28 354 Treads 252 | . . . . . . . . 238 14 . . . Legs 3804 | 42 319 590 102 976 98 534 355 731 . 5 . 52 Wheels 289 | . . . . . . . . . 26 263 . . Hover 722 | . . . . . . . . . . 200 177 345 Flight 289 | . . . . . . . . . 80 99 110 . Fastest Speed 31 | 50 120 190 190 190 190 120 120 120 50 45 34 31 Average Speed 163 | 118 187 190 190 190 227 160 120 233 198 153 44 72 Slowest Speed 1600 | 120 190 190 190 190 260 190 120 1600 412 260 150 190 Overloaded Moves . | . . . . . . . . . . . . . Propulsion Burnouts . | . . . . . . . . . . . . . Robots Hopped 6 | . . . . . . . . . . 6 . . Potential Cave-ins . | . . . . . . . . . . . . . Cave-ins Triggered . | . . . . . . . . . . . . . Exploration Rate (%) 29 | 4 57 35 19 57 2 14 13 90 41 21 12 24 Regions Visited 12 Branch Regions 5 Pre-discovered Areas 1 | . . 1 . . . . . . . . . . Known Exits Taken . | . . . . . . . . . . . . . Unknown Exits Taken 12 | 1 1 1 1 1 1 1 1 1 1 1 1 . Scrap Searched 12 | . . 4 . 3 . . . 4 1 . . . Spaces Dug 14 | . . 2 . . . . . . . 1 1 10 Terrain Destroyed 159 | . . 2 . . . 26 53 44 . 19 1 14 Melee . | . . . . . . . . . . . . . Projectile 105 | . . 2 . . . 13 12 44 . 19 1 14 AOE 54 | . . . . . . 13 41 . . . . . Terrain Rammed . | . . . . . . . . . . . . . Walls Destroyed . | . . . . . . . . . . . . . Machines Disabled . | . . . . . . . . . . . . . Actions | -11 -10 -10 -8 -8 -6 -5 -4 -4 -4 -3 -2 -1 --------- Run | Yrd Mat Sub Rec Scr Fac Fac Fac Upp Upp Res Res Acc Total 6889 | 48 371 692 123 1029 145 652 408 1200 297 712 340 872 Wait 181 | . . 2 . 31 19 5 1 60 29 22 4 8 Move 5840 | 42 318 589 101 975 97 533 354 969 213 584 314 751 Hop 6 | . . . . . . . . . . 6 . . Pick Up 127 | 1 10 14 8 13 . 21 13 21 5 16 4 1 Fast Attach 91 | 5 3 . . . 2 5 . 23 14 10 10 19 Attach 75 | . 2 5 . . 6 11 5 20 9 12 2 3 Detach 3 | . . . . . . . . . 2 1 . . Swap 51 | . . 4 3 1 3 5 5 11 . 12 . 7 Drop 78 | . 3 3 11 9 . 15 5 9 1 11 2 9 Fire 356 | . 35 75 . . 18 50 22 71 18 32 4 31 Melee 27 | . . . . . . 7 . 16 4 . . . Ram 19 | . . . . . . . . . . 6 . 13 Kick 1 | . . . . . . . 1 . . . . . Crush . | . . . . . . . . . . . . . Escape Stasis 32 | . . . . . . . 2 . . . . 30 Rewire 2 | . . . . . . . . . 2 . . . Trap . | . . . . . . . . . . . . . Miscellaneous . | . . . . . . . . . . . . . Route ------- -11/Scrapyard -10/Materials (discovered 3 exits: [*Mat] / [*Min] / *Sub) -10/Subcaves (discovered 3 exits: [*Mat x2] / *Rec) -8/Recycling -8/Scraptown -6/Factory -5/Factory -4/Factory -4/Upper Caves -4/Upper Caves (discovered 2 exits: War / *Res) -3/Research -2/Research -1/Access History --------- Turn | Location | Event 5 | -11/Scrapyard | Discovered new exit (range 16) 60 | -11/Scrapyard | Entered Materials 317 | -10/Materials | Build established: Mutant 429 | -10/Materials | Discovered new exit (range 12) 672 | -10/Materials | Discovered new exit (range 15) 742 | -10/Materials | Discovered new exit (range 6) 752 | -10/Materials | Entered Subcaves 789 | -10/Subcaves | Discovered new exit (range 8) 813 | -10/Subcaves | Disturbed a concealed Subdweller 820 | -10/Subcaves | Ambushed by Subdweller buried in earth 934 | -10/Subcaves | Disturbed a concealed Subdweller 935 | -10/Subcaves | Disturbed a concealed Subdweller 936 | -10/Subcaves | Core integrity fell below 50% 1352 | -10/Subcaves | Learned Materials stockpile data 1394 | -10/Subcaves | Discovered new exit (range 15) 1497 | -10/Subcaves | Visited Clippyterm 1502 | -10/Subcaves | Learned location of Extension (-6) 1616 | -10/Subcaves | Shifting Twisted Machinery released Sub. Monowheel 1648 | -10/Subcaves | Shifting Twisted Machinery released Sub. Laser 2007 | -10/Subcaves | Shifting Twisted Machinery released Sub. Laser 2026 | -10/Subcaves | Shifting Twisted Machinery released Sub. Beam Cannon 2075 | -10/Subcaves | Discovered new exit (range 14) 2121 | -10/Subcaves | Entered Recycling 2266 | -8/Recycling | Scanned before Scraplab entrance 2295 | -8/Recycling | Entered Scraplab 2327 | -8/Recycling | Discovered new exit (range 3) 2331 | -8/Recycling | Entered Scraptown 2331 | -8/Scraptown | System corruption cleaned by C-Scrubber 2654 | -8/Scraptown | Visited Awakened 2730 | -8/Scraptown | Visited Red Mages 2798 | -8/Scraptown | Visited Comm Corps 2967 | -8/Scraptown | Visited Cyclists 3043 | -8/Scraptown | Visited Cave Peace 3115 | -8/Scraptown | Visited Artisan Demo Area 3242 | -8/Scraptown | Visited Fellowship of the Rings 4148 | -8/Scraptown | Discovered new exit (range 13) 4232 | -8/Scraptown | Entered Factory 4232 | -6/Factory | Evolved 8 slots: Power x1, Propulsion x2, Utility x4, Weapon x1 4507 | -6/Factory | Discovered new exit (range 17) 4532 | -6/Factory | Build established: Derelict-Tank 4541 | -6/Factory | Entered another Factory area 4541 | -5/Factory | Evolved 2 slots: Propulsion x1, Utility x1 4873 | -5/Factory | Build established: Scavenger-Tank 5291 | -5/Factory | Lost 10 parts (2p2n4u2w) 5453 | -5/Factory | Central database locked down 5460 | -5/Factory | Discovered new exit (range 15) 5582 | -5/Factory | System corruption reached 10% 5621 | -5/Factory | Entered another Factory area 5621 | -4/Factory | Evolved 2 slots: Power x1, Propulsion x1 5973 | -4/Factory | Build established: Tank 6139 | -4/Factory | Discovered new exit (range 7) 6147 | -4/Factory | Entered Upper Caves 6226 | -4/Upper Caves | Attracted the attention of an 0b10 checkpoint 6292 | -4/Upper Caves | Learned Research trap positions 6301 | -4/Upper Caves | Lost 5 parts (2p2n1w) 7170 | -4/Upper Caves | Lost 13 parts (2p4n5u2w) 7217 | -4/Upper Caves | Attacked by a faux Warlord 7308 | -4/Upper Caves | Encountered a Warlord checkpoint 7378 | -4/Upper Caves | Build established: Scavenger-Gladiator 7625 | -4/Upper Caves | Found Alien Artifact 7847 | -4/Upper Caves | Discovered new exit (range 14) 7921 | -4/Upper Caves | Core integrity fell below 50% 7954 | -4/Upper Caves | Lost 9 parts (1p3n4u1w) 7954 | -4/Upper Caves | Identified Dimensional Node Initializer 7954 | -4/Upper Caves | Initialized slip node 8209 | -4/Upper Caves | Build established: Scavenger-Mutant 8801 | -4/Upper Caves | Entered another Upper Caves area 8803 | -4/Upper Caves | Attracted the attention of an 0b10 checkpoint 8854 | -4/Upper Caves | Lost 3 parts (1n1u1w) 8872 | -4/Upper Caves | Identified exit to Warlord 9141 | -4/Upper Caves | Attracted the attention of an 0b10 outpost 9216 | -4/Upper Caves | Spotted B-86 Titan 9221 | -4/Upper Caves | Lost 14 parts (4p2n3u5w) 9226 | -4/Upper Caves | Core integrity fell below 20% 9247 | -4/Upper Caves | Found DCF Scrap (14 items) 9335 | -4/Upper Caves | AD-0RF showed up to help 9337 | -4/Upper Caves | AD-0RF revealed a hidden path 9353 | -4/Upper Caves | Entered Research 9353 | -3/Research | Evolved 2 slots: Propulsion x1, Utility x1 9354 | -3/Research | Loaded intel: 80 trap records 9513 | -3/Research | Build established: Derelict-Mutant 9814 | -3/Research | Build established: Derelict-Tank 10217 | -3/Research | Garrison activated, responded to threat 10323 | -3/Research | Found Fusion Bomb Launcher 10343 | -3/Research | Lost 18 parts (4p7n5u2w) 10383 | -3/Research | Core integrity fell below 50% 10418 | -3/Research | Core integrity fell below 20% 10455 | -3/Research | Lost 10 parts (4n6u) 10455 | -3/Research | Discovered new exit (range 16) 10462 | -3/Research | Entered another Research area 10462 | -2/Research | Evolved 2 slots: Power x2 10593 | -2/Research | Lost 4 parts (2n1u1w) 10634 | -2/Research | Discovered new exit (range 7) 10637 | -2/Research | Entered Access 10637 | -1/Access | Evolved 2 slots: Propulsion x1, Utility x1 11044 | -1/Access | Spotted B-99 Colossus 11053 | -1/Access | Released all parts (19) 11077 | -1/Access | Lost 4 parts (1p1n1u1w) 11302 | -1/Access | Released all parts (3) 11309 | -1/Access | Core integrity fell below 50% 11328 | -1/Access | Core integrity fell below 20% 11351 | -1/Access | Destroyed by S-43 Plague with Heavy Machine Gun Last Messages --------------- 11287_ Slug penetrates Wall. 11289_ Adv. Thermal Shield destroyed. 11291_ Dropped Lgt. Quantum Reactor. 11296_ Quantum Reactor destroyed. 11302_ Released Centrium Leg. 11302_ Released Imp. Targeting Computer. 11302_ Released Railgun. 11305_ ALERT: Suspicious intruders detected, dispatching Cutter reinforcements to area. 11308_ Knocked back. 11308_ C-57 Dissector knocked back. 11315_ Knocked back. 11323_ Slammed into C-57 Dissector. 11334_ Slammed into S-43 Plague. 11342_ Slammed into U-05 Engineer. 11345_ Slammed into C-57 Dissector. 11346_ ALERT: Potential suspicious activity detected, Programmers report to Access Zone 3Y. 11346_ Slammed into C-57 Dissector. Map ----- +----------------------------------------------------+ | ?????????????????????????????????????????????# | | ?????????????????????????????????????????????# | | ???????????????????????????????????????####+## | | ???????????????????????????????????????# | | ???????????????????????????????????????# | | ???????????????????????????????????????# | | ???????????????????????????????????????+ | | ???????????????????????????????????????# ##### | | ???????????????????????????????????????# ?????# | | ???????????????????????????????????????# ??????# | | ?????????????????????????????????????###+##+##??# | | ???????????????????????????????????# = ! # | | ???????????????????????????????????# + | | ???????????????????????????????????# # | | ???????????????????????????????????# ! ??# | | ???????????????????????????????????# = ????# | | ???????????????????????????????????#######??????# | | ?????????????????????#########??????????????????# | | ?????????????????????? ???????????????????# | | ?????????????????????? !]! ???????????????????# | | ??????????????????????? !!! ????????????????????# | | ??????????????????????? ]! ??????????########### | | ???????????????????????? ?????????? ## # | | ???????????????????????? ????????? ## # | | ????????????????????????#/#????????? ## / | | ????????????????????????#@#????????!! ## # | | ????????????????????????# #??????? !! ## # % | | ????????????????????????# #?????? !! ## # | | ????????????????????#####s####### ######+## | | ????????????????????+ cs%% % + #????# ## | | ????????????????????########### # #????# ## | | ????????????????????#########?# #???? ###??# ## | | ????????????????????# ?# #?????? #??# #### | | ????????????????????# * #%#?????# #??# #??# | | ????????????????????# # ####### #??# #??# | | ????????????????????#*]! / #??# #??# | | ????????????????????#*]! # #??# #??# | | ????????????????????#*]! * # #??# #??# | | ????????????????????###########+##+## #??# #### | | ????????????????????????????# ## ##?# | | ????????????????????????????# # #?# | | ????????????????????????????# # "" ### | | ????????????????????????????# / "T | | ????????????????????????????# * # ### | | ????????????????????????????# # #?# | | ????????????????????????????##########%###?# | | ?????????????????????????????????????# #???# | | ?????????????????????????????????????# #???# | | ?????????????????????????????????????#+#???# ## | | ???????????????????????????????????? ??#+##+## | +----------------------------------------------------+ Best States ------------- Heat Dissipation 112 Energy Generation 97 Energy Capacity 750 Matter Stores 300 Matter Capacity 300 Sight Range 18 Robot Scan Range 15 Terrain Scan Density 85 Jamming Range 16 Additional Mass Support 9 EM Shielding 3 Corruption Containment 12 Armor Coverage 600 Resistance: KI 40 Resistance: TH 50 Resistance: EX 70 Resistance: EM 20 Resistance: I 20 Resistance: S 20 Resistance: P 20 Core Shielding 20 Propulsion Shielding 66 Utility Shielding 66 Point Defense Rating 240 Evasion (%) 70 Targeting Accuracy 6 Melee Accuracy 12 Target Analysis 8 Recoil Reduction 9 Matter Filtering 30 Energy Filtering 30 Kinecelleration 40 Offensive Hacking 10 Item Schematics ----------------- Deuterium Engine | -5/Factory | Scanalyzed Wave Gun | -5/Factory | Scanalyzed Antigrav System | -3/Research | Scanalyzed Robot Schematics ------------------ None Fabricated ------------ Nothing Repaired ---------- Nothing Studied --------- Rnf. Fission Core | -5/Factory | Hacked Lgt. Deuterium Engine | -5/Factory | Hacked Alien Tech Used ----------------- Dimensional Node Initializer Achievements -------------- Fancy Inventory I Laugh At Your Crits Physics Hates This One Trick You May Approach The Wall Challenges ------------ None Game ------ Seed RagnarokGrenadeMatrix Manual? 0 Play Time 01:35:24 Cumulative 269.5 hours Start 2026.02.12 @ 14:51:18 End 2026.02.12 @ 18:21:07 Sessions 1 Manual Loads 0 Difficulty Adventurer Special Mode None Game No. 315 Rogue 0 Adventurer 315 Explorer 0 Win Type - Total 0 Types 0/0/0/0/0/0/0/0/0/0 Lore% 73 Gallery% 57 Achievement% 36 Wizard Run 0 Options --------- Layout 2 ASCII 0 Keyboard 0 Movement Mouse Keybinds 0 Fullscreen 2 Font 48/Smallcaps Map View 50x44 Zoom Use 1% Tactical HUD 1 Map Filters NONE Filters NONE Steam 1 RUN: 449d6102-dec8-4f52-a046-330cb504ab3a